[Event "Late-Titled-Tuesday-Blitz-November-28-2023"]
[Site "Chess.com"]
[Date "2023.11.28"]
[Round "2"]
[White "Godzillator"]
[Black "TanitoluwaAps116"]
[Result "0-1"]
[WhiteElo "2350"]
[BlackElo "2701"]
[TimeControl "180+1"]
[EndTime "14:16:27 PST"]
[Termination "TanitoluwaAps116 won by resignation"]

1. Nf3 {[%clk 0:03:00.9]} 1... Nf6 {[%clk 0:01:57.6]} 2. d4 {[%clk 0:02:57.9]}
2... g6 {[%clk 0:01:58]} 3. c3 {[%clk 0:02:57.7]} 3... Bg7 {[%clk 0:01:58.5]} 4.
Bf4 {[%clk 0:02:56.2]} 4... d6 {[%clk 0:01:58.7]} 5. e3 {[%clk 0:02:55.7]} 5...
O-O {[%clk 0:01:59.6]} 6. h3 {[%clk 0:02:56.1]} 6... Nc6 {[%clk 0:02:00.2]} 7.
Bh2 {[%clk 0:02:54]} 7... Re8 {[%clk 0:02:00.6]} 8. Nbd2 {[%clk 0:02:53.2]} 8...
Bd7 {[%clk 0:02:00.3]} 9. Be2 {[%clk 0:02:51]} 9... e5 {[%clk 0:02:00.8]} 10.
dxe5 {[%clk 0:02:50.2]} 10... dxe5 {[%clk 0:02:01.4]} 11. O-O {[%clk 0:02:49.8]}
11... Qe7 {[%clk 0:02:01.5]} 12. Nb3 {[%clk 0:02:49]} 12... Rad8 {[%clk
0:02:01.3]} 13. Qc2 {[%clk 0:02:48.2]} 13... Bf5 {[%clk 0:02:01.4]} 14. Qc1
{[%clk 0:02:45.7]} 14... Bd3 {[%clk 0:01:59.3]} 15. Bxd3 {[%clk 0:02:41.8]}
15... Rxd3 {[%clk 0:02:00.2]} 16. Rd1 {[%clk 0:02:41.9]} 16... Red8 {[%clk
0:02:00.7]} 17. Rxd3 {[%clk 0:02:41.5]} 17... Rxd3 {[%clk 0:02:01.6]} 18. Qc2
{[%clk 0:02:40.8]} 18... e4 {[%clk 0:01:51.9]} 19. Nfd4 {[%clk 0:02:39]} 19...
Ne5 {[%clk 0:01:33.1]} 20. Bxe5 {[%clk 0:02:29]} 20... Qxe5 {[%clk 0:01:32.8]}
21. Nc1 {[%clk 0:02:12.8]} 21... c5 {[%clk 0:01:32]} 22. Nf3 {[%clk 0:02:06.8]}
22... Qd5 {[%clk 0:01:04.2]} 23. Nxd3 {[%clk 0:02:05.8]} 23... exd3 {[%clk
0:01:05.1]} 24. Qd1 {[%clk 0:02:02.6]} 24... Ne4 {[%clk 0:00:51.5]} 25. Nd2
{[%clk 0:02:02.1]} 25... Nxd2 {[%clk 0:00:43.1]} 26. Qxd2 {[%clk 0:02:01.9]}
26... c4 {[%clk 0:00:44]} 27. Re1 {[%clk 0:01:52.8]} 27... Bh6 {[%clk
0:00:38.6]} 28. b3 {[%clk 0:01:48.6]} 28... b5 {[%clk 0:00:36.6]} 29. bxc4
{[%clk 0:01:48.6]} 29... bxc4 {[%clk 0:00:37.5]} 30. Rb1 {[%clk 0:01:48.4]}
30... Bg5 {[%clk 0:00:25.5]} 31. f4 {[%clk 0:01:41.4]} 31... Bf6 {[%clk
0:00:24.1]} 32. Re1 {[%clk 0:01:36.3]} 32... Qa5 {[%clk 0:00:21.5]} 33. Rc1
{[%clk 0:01:29.8]} 33... Be7 {[%clk 0:00:19.2]} 34. e4 {[%clk 0:01:27.7]} 34...
Ba3 {[%clk 0:00:18.3]} 35. Rb1 {[%clk 0:01:27.5]} 35... Bc5+ {[%clk 0:00:18.7]}
36. Kh1 {[%clk 0:01:26.5]} 36... Bd4 {[%clk 0:00:17.6]} 37. Rc1 {[%clk
0:01:20.8]} 37... h5 {[%clk 0:00:15.7]} 38. Qb2 {[%clk 0:01:19.4]} 38... Be3
{[%clk 0:00:14.5]} 39. Rf1 {[%clk 0:01:13.8]} 39... h4 {[%clk 0:00:07.9]} 40. f5
{[%clk 0:01:06.4]} 40... g5 {[%clk 0:00:07]} 41. f6 {[%clk 0:01:02.3]} 41... Kh7
{[%clk 0:00:05.7]} 42. Qb4 {[%clk 0:00:52.5]} 42... Qxb4 {[%clk 0:00:05.9]} 43.
cxb4 {[%clk 0:00:52.5]} 43... c3 {[%clk 0:00:06.5]} 0-1

[Event "Late-Titled-Tuesday-Blitz-November-28-2023"]
[Site "Chess.com"]
[Date "2023.11.28"]
[Round "2"]
[White "2346PL"]
[Black "Chessnut2018"]
[Result "1-0"]
[WhiteElo "2362"]
[BlackElo "1261"]
[TimeControl "180+1"]
[EndTime "14:16:36 PST"]
[Termination "2346PL won on time"]

1. Nf3 {[%clk 0:02:20.1]} 1... d5 {[%clk 0:02:59.3]} 2. d4 {[%clk 0:02:19.2]}
2... Nf6 {[%clk 0:02:58.9]} 3. g3 {[%clk 0:02:19.4]} 3... e6 {[%clk 0:02:58.7]}
4. Bg2 {[%clk 0:02:20]} 4... Be7 {[%clk 0:02:58.5]} 5. O-O {[%clk 0:02:20.7]}
5... O-O {[%clk 0:02:57.5]} 6. c4 {[%clk 0:02:21.5]} 6... c6 {[%clk 0:02:57.2]}
7. Ne5 {[%clk 0:02:20.3]} 7... Nbd7 {[%clk 0:02:55.9]} 8. b3 {[%clk 0:02:18.6]}
8... a6 {[%clk 0:02:54.4]} 9. Nxd7 {[%clk 0:02:16.2]} 9... Bxd7 {[%clk
0:02:51.6]} 10. Nc3 {[%clk 0:02:17]} 10... Re8 {[%clk 0:02:46.5]} 11. Bb2 {[%clk
0:02:16.3]} 11... g6 {[%clk 0:02:42.4]} 12. Qc2 {[%clk 0:02:12.6]} 12... Bf8
{[%clk 0:02:42.2]} 13. Rad1 {[%clk 0:02:10.9]} 13... Bg7 {[%clk 0:02:41.4]} 14.
e4 {[%clk 0:02:07.5]} 14... Rc8 {[%clk 0:02:34.6]} 15. e5 {[%clk 0:02:03.3]}
15... Ne4 {[%clk 0:02:13.4]} 16. Nxe4 {[%clk 0:02:02.6]} 16... dxe4 {[%clk
0:02:13]} 17. Qxe4 {[%clk 0:02:03.5]} 17... Qb6 {[%clk 0:02:02.5]} 18. h4 {[%clk
0:01:58.8]} 18... h5 {[%clk 0:01:59.2]} 19. Kh2 {[%clk 0:01:43.3]} 19... a5
{[%clk 0:01:51.7]} 20. Ba3 {[%clk 0:01:42.4]} 20... Qa6 {[%clk 0:01:36]} 21. Bd6
{[%clk 0:01:40.4]} 21... a4 {[%clk 0:01:28]} 22. Qc2 {[%clk 0:01:36.5]} 22...
axb3 {[%clk 0:01:24.2]} 23. axb3 {[%clk 0:01:36.3]} 23... b5 {[%clk 0:01:19.8]}
24. Ra1 {[%clk 0:01:33.5]} 24... Qb7 {[%clk 0:01:17.9]} 25. c5 {[%clk
0:01:32.9]} 25... Ra8 {[%clk 0:01:15.5]} 26. f4 {[%clk 0:01:32.1]} 26... Rxa1
{[%clk 0:01:12.1]} 27. Rxa1 {[%clk 0:01:31.5]} 27... Ra8 {[%clk 0:01:10.9]} 28.
Qb2 {[%clk 0:01:27]} 28... Rxa1 {[%clk 0:01:09.2]} 29. Qxa1 {[%clk 0:01:27]}
29... Bc8 {[%clk 0:01:02.1]} 30. Qa5 {[%clk 0:01:26.4]} 30... Bd7 {[%clk
0:00:47.3]} 31. Qd8+ {[%clk 0:01:22.9]} 31... Kh7 {[%clk 0:00:44.1]} 32. Qb6
{[%clk 0:01:19]} 32... Qc8 {[%clk 0:00:37.4]} 33. Be4 {[%clk 0:01:13.2]} 33...
f6 {[%clk 0:00:30.5]} 34. b4 {[%clk 0:01:05.5]} 34... fxe5 {[%clk 0:00:28.6]}
35. dxe5 {[%clk 0:01:04.4]} 35... Qe8 {[%clk 0:00:26]} 36. Qa7 {[%clk
0:01:02.1]} 36... Kh6 {[%clk 0:00:22.2]} 37. Kh3 {[%clk 0:00:57.5]} 37... Qf7
{[%clk 0:00:19.4]} 38. Qb8 {[%clk 0:00:53.8]} 38... Be8 {[%clk 0:00:09.9]} 39.
Qd8 {[%clk 0:00:50.3]} 39... Bf8 {[%clk 0:00:04.8]} 40. Qg5+ {[%clk 0:00:46.9]}
40... Kh7 {[%clk 0:00:03.7]} 41. Qxh5+ {[%clk 0:00:46.5]} 1-0

[Event "Late-Titled-Tuesday-Blitz-November-28-2023"]
[Site "Chess.com"]
[Date "2023.11.28"]
[Round "2"]
[White "chenrip"]
[Black "DamianoLew95"]
[Result "1-0"]
[WhiteElo "2426"]
[BlackElo "2742"]
[TimeControl "180+1"]
[EndTime "14:16:38 PST"]
[Termination "chenrip won by resignation"]

1. e4 {[%clk 0:03:00.9]} 1... c5 {[%clk 0:02:59.6]} 2. Nf3 {[%clk 0:02:58.8]}
2... d6 {[%clk 0:02:57.2]} 3. Bb5+ {[%clk 0:02:58.2]} 3... Nd7 {[%clk
0:02:55.8]} 4. a4 {[%clk 0:02:58.9]} 4... a6 {[%clk 0:02:56.1]} 5. Bc4 {[%clk
0:02:58.7]} 5... e6 {[%clk 0:02:56.5]} 6. a5 {[%clk 0:02:58]} 6... Ngf6 {[%clk
0:02:55.7]} 7. Nc3 {[%clk 0:02:57.4]} 7... Be7 {[%clk 0:02:55.6]} 8. d4 {[%clk
0:02:57]} 8... cxd4 {[%clk 0:02:55.5]} 9. Nxd4 {[%clk 0:02:57.6]} 9... Ne5
{[%clk 0:02:49.4]} 10. Be2 {[%clk 0:02:55.2]} 10... Nc6 {[%clk 0:02:49.3]} 11.
Nxc6 {[%clk 0:02:50.2]} 11... bxc6 {[%clk 0:02:50.2]} 12. e5 {[%clk 0:02:46.4]}
12... dxe5 {[%clk 0:02:46.4]} 13. Qxd8+ {[%clk 0:02:45.7]} 13... Bxd8 {[%clk
0:02:47.3]} 14. Bf3 {[%clk 0:02:45.7]} 14... Nd5 {[%clk 0:02:45.2]} 15. O-O
{[%clk 0:02:43.6]} 15... f5 {[%clk 0:02:41.7]} 16. Na4 {[%clk 0:02:43.4]} 16...
e4 {[%clk 0:02:37.5]} 17. Be2 {[%clk 0:02:39.6]} 17... Bxa5 {[%clk 0:02:25.7]}
18. Nc5 {[%clk 0:02:31.5]} 18... Bb6 {[%clk 0:02:14.2]} 19. Nxa6 {[%clk
0:02:30.9]} 19... Kf7 {[%clk 0:02:07.3]} 20. Bd2 {[%clk 0:02:27.4]} 20... e3
{[%clk 0:02:04.8]} 21. fxe3 {[%clk 0:02:25.1]} 21... Nxe3 {[%clk 0:01:54.8]} 22.
Bxe3 {[%clk 0:02:24.4]} 22... Bxe3+ {[%clk 0:01:55.7]} 23. Kh1 {[%clk
0:02:24.7]} 23... Bxa6 {[%clk 0:01:47.9]} 24. Bxa6 {[%clk 0:02:24.2]} 24... Ra7
{[%clk 0:01:35.4]} 25. Bc4 {[%clk 0:02:24.2]} 25... Rxa1 {[%clk 0:01:18.2]} 26.
Rxa1 {[%clk 0:02:25.1]} 26... Kf6 {[%clk 0:01:15.9]} 27. Ra6 {[%clk 0:02:23.4]}
27... Rc8 {[%clk 0:01:14.5]} 28. g3 {[%clk 0:02:21.2]} 28... Bd2 {[%clk
0:01:06]} 29. Kg2 {[%clk 0:02:18]} 29... g5 {[%clk 0:01:03.6]} 30. Kf3 {[%clk
0:02:17.6]} 30... h5 {[%clk 0:01:03.4]} 31. Ke2 {[%clk 0:02:16.6]} 31... Bb4
{[%clk 0:00:59.5]} 32. c3 {[%clk 0:02:06.3]} 32... Bd6 {[%clk 0:00:57.2]} 33. b4
{[%clk 0:02:02.6]} 33... h4 {[%clk 0:00:55.8]} 34. gxh4 {[%clk 0:02:01.5]} 34...
gxh4 {[%clk 0:00:55.9]} 35. h3 {[%clk 0:02:01.6]} 35... Ke7 {[%clk 0:00:51.5]}
36. Ra7+ {[%clk 0:01:57]} 36... Rc7 {[%clk 0:00:49.4]} 37. Ra8 {[%clk
0:01:57.2]} 37... Be5 {[%clk 0:00:46.6]} 38. Kd3 {[%clk 0:01:48]} 38... Rd7+
{[%clk 0:00:46.5]} 39. Kc2 {[%clk 0:01:48.3]} 39... Kf6 {[%clk 0:00:41.8]} 40.
Rh8 {[%clk 0:01:35]} 40... Bg3 {[%clk 0:00:33.8]} 41. Rh6+ {[%clk 0:01:33]}
41... Kg5 {[%clk 0:00:31]} 42. Rxe6 {[%clk 0:01:32.1]} 42... f4 {[%clk
0:00:22.9]} 43. Be2 {[%clk 0:01:26.8]} 43... Be1 {[%clk 0:00:22.6]} 44. Bg4
{[%clk 0:01:16.5]} 44... Rd2+ {[%clk 0:00:18.3]} 45. Kc1 {[%clk 0:01:14]} 45...
Rg2 {[%clk 0:00:14.7]} 46. Rxe1 {[%clk 0:01:13.7]} 46... Rxg4 {[%clk 0:00:15.1]}
47. hxg4 {[%clk 0:01:13.2]} 47... h3 {[%clk 0:00:15.4]} 48. c4 {[%clk 0:01:13]}
48... f3 {[%clk 0:00:15.2]} 49. Kd2 {[%clk 0:01:12]} 49... Kxg4 {[%clk
0:00:15.1]} 50. Ke3 {[%clk 0:01:10.6]} 50... Kg3 {[%clk 0:00:15.4]} 51. Rg1+
{[%clk 0:01:11]} 51... Kh2 {[%clk 0:00:15.6]} 52. Rg8 {[%clk 0:01:10.4]} 52...
Kh1 {[%clk 0:00:14.7]} 53. Kf2 {[%clk 0:01:10.2]} 53... h2 {[%clk 0:00:13.6]}
54. Rh8 {[%clk 0:01:10.5]} 54... c5 {[%clk 0:00:12.9]} 55. Rxh2+ {[%clk
0:01:10.8]} 55... Kxh2 {[%clk 0:00:13.1]} 56. bxc5 {[%clk 0:01:11.2]} 1-0

[Event "Late-Titled-Tuesday-Blitz-November-28-2023"]
[Site "Chess.com"]
[Date "2023.11.28"]
[Round "2"]
[White "slorovel"]
[Black "GMthekingindian"]
[Result "1-0"]
[WhiteElo "2503"]
[BlackElo "2321"]
[TimeControl "180+1"]
[EndTime "14:16:45 PST"]
[Termination "slorovel won by resignation"]

1. e4 {[%clk 0:03:00.9]} 1... c5 {[%clk 0:03:00.1]} 2. Nf3 {[%clk 0:02:56.7]}
2... d6 {[%clk 0:03:00.7]} 3. d4 {[%clk 0:02:56]} 3... cxd4 {[%clk 0:03:01.6]}
4. Nxd4 {[%clk 0:02:56.6]} 4... Nf6 {[%clk 0:03:02.1]} 5. f3 {[%clk 0:02:57.3]}
5... Qb6 {[%clk 0:02:59.9]} 6. c4 {[%clk 0:02:56.4]} 6... Nc6 {[%clk 0:02:58.8]}
7. Nb3 {[%clk 0:02:54.1]} 7... a5 {[%clk 0:02:55]} 8. Nc3 {[%clk 0:02:51.6]}
8... a4 {[%clk 0:02:54.9]} 9. Nd2 {[%clk 0:02:51.7]} 9... Ne5 {[%clk 0:02:40.1]}
10. Be2 {[%clk 0:02:49.8]} 10... Be6 {[%clk 0:02:32]} 11. Nxa4 {[%clk
0:02:46.8]} 11... Qb4 {[%clk 0:02:10.9]} 12. Nc3 {[%clk 0:02:44.2]} 12... Nxc4
{[%clk 0:02:09.7]} 13. Nxc4 {[%clk 0:02:43.8]} 13... Bxc4 {[%clk 0:02:09.4]} 14.
O-O {[%clk 0:02:44]} 14... g6 {[%clk 0:01:36]} 15. Be3 {[%clk 0:02:37.8]} 15...
Bxe2 {[%clk 0:01:11.3]} 16. Qxe2 {[%clk 0:02:38.7]} 16... Bg7 {[%clk 0:01:11.6]}
17. a3 {[%clk 0:02:30.8]} 17... Qb3 {[%clk 0:01:08.6]} 18. Bd4 {[%clk
0:02:29.2]} 18... O-O {[%clk 0:01:05.8]} 19. Qb5 {[%clk 0:02:26.8]} 19... Qxb5
{[%clk 0:00:58.6]} 20. Nxb5 {[%clk 0:02:27.7]} 20... Rfc8 {[%clk 0:00:53.7]} 21.
Rfc1 {[%clk 0:02:26.1]} 21... Kf8 {[%clk 0:00:49.5]} 22. b4 {[%clk 0:02:20.6]}
22... Rc6 {[%clk 0:00:34.4]} 23. Bb2 {[%clk 0:02:00.9]} 23... Ne8 {[%clk
0:00:30.5]} 24. Bxg7+ {[%clk 0:01:59.7]} 24... Kxg7 {[%clk 0:00:31.3]} 25. Rxc6
{[%clk 0:01:58.3]} 25... bxc6 {[%clk 0:00:31.1]} 26. Nd4 {[%clk 0:01:59]} 26...
c5 {[%clk 0:00:28.5]} 27. bxc5 {[%clk 0:01:58.4]} 27... dxc5 {[%clk 0:00:29.4]}
28. Nb5 {[%clk 0:01:57.7]} 28... Nd6 {[%clk 0:00:28.8]} 29. Nxd6 {[%clk
0:01:57.8]} 29... exd6 {[%clk 0:00:29.7]} 30. a4 {[%clk 0:01:56.8]} 30... Ra5
{[%clk 0:00:29.6]} 31. Kf2 {[%clk 0:01:56.8]} 31... Kf6 {[%clk 0:00:30.2]} 32.
Ke2 {[%clk 0:01:56.7]} 32... Ke6 {[%clk 0:00:29.4]} 33. Kd3 {[%clk 0:01:55.1]}
33... d5 {[%clk 0:00:30]} 34. exd5+ {[%clk 0:01:53.3]} 34... Kxd5 {[%clk
0:00:30.9]} 35. Kc3 {[%clk 0:01:52.5]} 35... f5 {[%clk 0:00:29.5]} 36. Rd1+
{[%clk 0:01:51.6]} 36... Kc6 {[%clk 0:00:29.7]} 37. Kb3 {[%clk 0:01:51.6]} 37...
Ra8 {[%clk 0:00:27.1]} 38. Re1 {[%clk 0:01:50.4]} 38... Kd6 {[%clk 0:00:26.2]}
39. Rd1+ {[%clk 0:01:50.3]} 39... Kc6 {[%clk 0:00:26.6]} 40. Ra1 {[%clk
0:01:46.9]} 40... Kd5 {[%clk 0:00:24.8]} 41. Kc3 {[%clk 0:01:46.2]} 41... c4
{[%clk 0:00:23.9]} 42. a5 {[%clk 0:01:46.5]} 42... Kc5 {[%clk 0:00:20.5]} 43. a6
{[%clk 0:01:46.9]} 43... Ra7 {[%clk 0:00:15.6]} 44. Ra4 {[%clk 0:01:43.1]} 44...
Kb5 {[%clk 0:00:15.8]} 45. Ra2 {[%clk 0:01:38.6]} 45... Kc5 {[%clk 0:00:15.4]}
46. h4 {[%clk 0:01:35.6]} 46... h6 {[%clk 0:00:15.2]} 47. g3 {[%clk 0:01:35.2]}
47... Kb5 {[%clk 0:00:15.4]} 48. Ra3 {[%clk 0:01:34]} 48... g5 {[%clk
0:00:15.2]} 49. h5 {[%clk 0:01:31.8]} 49... g4 {[%clk 0:00:14.6]} 50. f4 {[%clk
0:01:31.5]} 50... Kc5 {[%clk 0:00:06.8]} 51. Ra5+ {[%clk 0:01:31.5]} 51... Kb6
{[%clk 0:00:07.1]} 52. Rxf5 {[%clk 0:01:31.9]} 52... Kxa6 {[%clk 0:00:07.5]} 53.
Kxc4 {[%clk 0:01:31.3]} 53... Rc7+ {[%clk 0:00:07.5]} 54. Kd4 {[%clk 0:01:31.4]}
54... Rd7+ {[%clk 0:00:07.7]} 55. Ke4 {[%clk 0:01:31.5]} 55... Rd2 {[%clk
0:00:07.8]} 56. Rf6+ {[%clk 0:01:31.7]} 56... Kb5 {[%clk 0:00:07.8]} 57. Rxh6
{[%clk 0:01:32.2]} 57... Rg2 {[%clk 0:00:08.1]} 58. Rg6 {[%clk 0:01:31.9]} 58...
Rh2 {[%clk 0:00:08.3]} 59. h6 {[%clk 0:01:32.1]} 59... Rh3 {[%clk 0:00:08.6]}
60. Kf5 {[%clk 0:01:32.4]} 60... Rxg3 {[%clk 0:00:08.7]} 61. h7 {[%clk
0:01:32.9]} 61... Rh3 {[%clk 0:00:09.3]} 62. Rg7 {[%clk 0:01:33.3]} 62... g3
{[%clk 0:00:09.4]} 63. Rxg3 {[%clk 0:01:30.7]} 63... Rxh7 {[%clk 0:00:09.1]} 64.
Kg6 {[%clk 0:01:30.3]} 64... Rh1 {[%clk 0:00:09]} 65. f5 {[%clk 0:01:30.4]}
65... Kc6 {[%clk 0:00:09.7]} 66. f6 {[%clk 0:01:30.7]} 66... Rd1 {[%clk
0:00:08.2]} 67. f7 {[%clk 0:01:30.7]} 67... Rd6+ {[%clk 0:00:08.6]} 68. Kg7
{[%clk 0:01:30.4]} 68... Rd7 {[%clk 0:00:09]} 69. Kg8 {[%clk 0:01:30.9]} 1-0

[Event "Late-Titled-Tuesday-Blitz-November-28-2023"]
[Site "Chess.com"]
[Date "2023.11.28"]
[Round "2"]
[White "gahryman"]
[Black "Dzidzik2203"]
[Result "1-0"]
[WhiteElo "2684"]
[BlackElo "2383"]
[TimeControl "180+1"]
[EndTime "14:16:46 PST"]
[Termination "gahryman won by resignation"]

1. e4 {[%clk 0:03:00.9]} 1... c5 {[%clk 0:02:59.8]} 2. Nc3 {[%clk 0:03:00.1]}
2... a6 {[%clk 0:02:59.9]} 3. g3 {[%clk 0:02:58.3]} 3... b5 {[%clk 0:02:52.3]}
4. Bg2 {[%clk 0:02:58.3]} 4... Bb7 {[%clk 0:02:52.3]} 5. d3 {[%clk 0:02:58.2]}
5... e6 {[%clk 0:02:52.6]} 6. Nh3 {[%clk 0:02:58.4]} 6... d5 {[%clk 0:02:52.1]}
7. O-O {[%clk 0:02:48.9]} 7... d4 {[%clk 0:02:51.5]} 8. Ne2 {[%clk 0:02:44.7]}
8... Be7 {[%clk 0:02:51.7]} 9. f4 {[%clk 0:02:44.2]} 9... Nf6 {[%clk 0:02:51.8]}
10. Nf2 {[%clk 0:02:01.2]} 10... O-O {[%clk 0:02:50.4]} 11. g4 {[%clk
0:01:59.5]} 11... Nfd7 {[%clk 0:02:40.7]} 12. g5 {[%clk 0:01:59.4]} 12... e5
{[%clk 0:02:40.3]} 13. h4 {[%clk 0:01:57]} 13... exf4 {[%clk 0:02:39.7]} 14.
Nxf4 {[%clk 0:01:54.5]} 14... Ne5 {[%clk 0:02:36.5]} 15. Ng4 {[%clk 0:01:34.7]}
15... Nbd7 {[%clk 0:02:34.2]} 16. Bd2 {[%clk 0:01:34.2]} 16... Bd6 {[%clk
0:02:30.2]} 17. Nh5 {[%clk 0:01:28.5]} 17... Nxg4 {[%clk 0:02:25.4]} 18. Qxg4
{[%clk 0:01:28]} 18... Ne5 {[%clk 0:02:26.3]} 19. Qe2 {[%clk 0:01:25]} 19... Bc8
{[%clk 0:02:23.1]} 20. Rf5 {[%clk 0:01:23.9]} 20... Kh8 {[%clk 0:01:56.4]} 21.
Raf1 {[%clk 0:01:19.5]} 21... Qe7 {[%clk 0:01:56.7]} 22. Nf4 {[%clk 0:00:40.8]}
22... Be6 {[%clk 0:01:55.1]} 23. Nd5 {[%clk 0:00:40]} 23... Bxd5 {[%clk
0:01:51.6]} 24. exd5 {[%clk 0:00:40.9]} 24... Rae8 {[%clk 0:01:51.1]} 25. Be4
{[%clk 0:00:41.2]} 25... f6 {[%clk 0:01:39.7]} 26. gxf6 {[%clk 0:00:36.9]} 26...
gxf6 {[%clk 0:01:39.8]} 27. Rh5 {[%clk 0:00:35.6]} 27... Rg8+ {[%clk 0:01:38]}
28. Kh1 {[%clk 0:00:35.3]} 28... Rg7 {[%clk 0:01:32.6]} 29. Bh6 {[%clk
0:00:34.9]} 29... Rg4 {[%clk 0:01:30.4]} 30. Bf4 {[%clk 0:00:26.1]} 30... Reg8
{[%clk 0:01:24.4]} 31. Bxe5 {[%clk 0:00:20.5]} 31... fxe5 {[%clk 0:01:19.6]} 32.
Qh2 {[%clk 0:00:14.6]} 32... R8g7 {[%clk 0:01:12.5]} 33. Qh3 {[%clk 0:00:14.1]}
33... Qd8 {[%clk 0:00:15.7]} 34. Bxh7 {[%clk 0:00:13.6]} 34... e4 {[%clk
0:00:09.9]} 35. Bf5+ {[%clk 0:00:13]} 35... Kg8 {[%clk 0:00:10.1]} 36. Be6+
{[%clk 0:00:13.3]} 1-0

[Event "Late-Titled-Tuesday-Blitz-November-28-2023"]
[Site "Chess.com"]
[Date "2023.11.28"]
[Round "2"]
[White "2Killer2"]
[Black "KNVB"]
[Result "1-0"]
[WhiteElo "2480"]
[BlackElo "2686"]
[TimeControl "180+1"]
[EndTime "14:16:50 PST"]
[Termination "2Killer2 won on time"]

1. d4 {[%clk 0:03:00.8]} 1... e5 {[%clk 0:03:00.1]} 2. dxe5 {[%clk 0:02:55.4]}
2... Nc6 {[%clk 0:03:00.2]} 3. Nf3 {[%clk 0:02:52.2]} 3... Qe7 {[%clk
0:02:56.8]} 4. Bf4 {[%clk 0:02:43.4]} 4... Qb4+ {[%clk 0:02:57]} 5. Bd2 {[%clk
0:02:39.3]} 5... Qxb2 {[%clk 0:02:57.2]} 6. Nc3 {[%clk 0:02:39.7]} 6... Bb4
{[%clk 0:02:57.9]} 7. Rb1 {[%clk 0:02:24.1]} 7... Qxc3 {[%clk 0:02:57.9]} 8.
Bxc3 {[%clk 0:02:22.3]} 8... Bxc3+ {[%clk 0:02:58.8]} 9. Nd2 {[%clk 0:02:21.6]}
9... Nxe5 {[%clk 0:02:59.4]} 10. Rb3 {[%clk 0:02:13.1]} 10... Ba5 {[%clk
0:02:59.6]} 11. e3 {[%clk 0:02:02]} 11... Nf6 {[%clk 0:02:58.3]} 12. Rb5 {[%clk
0:02:01]} 12... Nc6 {[%clk 0:02:56.6]} 13. Bd3 {[%clk 0:01:58.2]} 13... O-O
{[%clk 0:02:55]} 14. O-O {[%clk 0:01:58]} 14... a6 {[%clk 0:02:53.2]} 15. Rb1
{[%clk 0:01:55.3]} 15... d5 {[%clk 0:02:44.1]} 16. e4 {[%clk 0:01:52.2]} 16...
dxe4 {[%clk 0:01:44.6]} 17. Nxe4 {[%clk 0:01:50.4]} 17... Nxe4 {[%clk
0:01:45.5]} 18. Bxe4 {[%clk 0:01:50.7]} 18... Bb6 {[%clk 0:01:46.4]} 19. Rb3
{[%clk 0:01:46.5]} 19... Be6 {[%clk 0:01:43.5]} 20. Bd5 {[%clk 0:01:35.3]} 20...
Rad8 {[%clk 0:01:33.6]} 21. c4 {[%clk 0:01:32]} 21... Nd4 {[%clk 0:01:21.4]} 22.
Rxb6 {[%clk 0:01:20.5]} 22... Bxd5 {[%clk 0:01:20.9]} 23. cxd5 {[%clk
0:01:18.2]} 23... Rxd5 {[%clk 0:01:14.5]} 24. Rxb7 {[%clk 0:01:14.2]} 24... Rfd8
{[%clk 0:01:13.9]} 25. Rxc7 {[%clk 0:01:08.8]} 25... Ne6 {[%clk 0:01:08.7]} 26.
Qc2 {[%clk 0:00:48.2]} 26... Rd2 {[%clk 0:00:55.5]} 27. Qc6 {[%clk 0:00:44.2]}
27... Nxc7 {[%clk 0:00:10.3]} 28. Qxc7 {[%clk 0:00:45.1]} 28... g6 {[%clk
0:00:09.5]} 29. h4 {[%clk 0:00:43.5]} 29... h5 {[%clk 0:00:08.3]} 30. a4 {[%clk
0:00:42]} 30... R8d6 {[%clk 0:00:04.4]} 31. a5 {[%clk 0:00:39.6]} 31... Rf6
{[%clk 0:00:01.7]} 32. g3 {[%clk 0:00:38.9]} 32... Kg7 {[%clk 0:00:01.4]} 33.
Kg2 {[%clk 0:00:39.1]} 33... Rd5 {[%clk 0:00:01.7]} 34. Rc1 {[%clk 0:00:23.9]}
34... Kh7 {[%clk 0:00:01.6]} 35. Rc3 {[%clk 0:00:19.4]} 35... Rd2 {[%clk
0:00:01.6]} 36. Rf3 {[%clk 0:00:19]} 36... Rxf3 {[%clk 0:00:01.6]} 37. Kxf3
{[%clk 0:00:18.9]} 37... Kg7 {[%clk 0:00:01.4]} 38. Qc3+ {[%clk 0:00:16.9]}
38... Rd4 {[%clk 0:00:01.5]} 39. Qxd4+ {[%clk 0:00:16.9]} 1-0

[Event "Late-Titled-Tuesday-Blitz-November-28-2023"]
[Site "Chess.com"]
[Date "2023.11.28"]
[Round "2"]
[White "jefferyx"]
[Black "Actuary44"]
[Result "1-0"]
[WhiteElo "2977"]
[BlackElo "2458"]
[TimeControl "180+1"]
[EndTime "14:16:51 PST"]
[Termination "jefferyx won by resignation"]

1. d4 {[%clk 0:02:58.7]} 1... Nf6 {[%clk 0:02:59.1]} 2. c4 {[%clk 0:02:58.6]}
2... g6 {[%clk 0:02:59.7]} 3. Nc3 {[%clk 0:02:57.8]} 3... Bg7 {[%clk 0:03:00.4]}
4. e4 {[%clk 0:02:58.4]} 4... d6 {[%clk 0:03:00.8]} 5. Be2 {[%clk 0:02:58.8]}
5... O-O {[%clk 0:03:01.4]} 6. Be3 {[%clk 0:02:59.4]} 6... e5 {[%clk 0:03:01.1]}
7. d5 {[%clk 0:02:58.4]} 7... Ne8 {[%clk 0:03:01]} 8. g4 {[%clk 0:02:46.1]} 8...
c5 {[%clk 0:03:01]} 9. h4 {[%clk 0:02:45.8]} 9... Na6 {[%clk 0:03:00.9]} 10. h5
{[%clk 0:02:45.9]} 10... Nac7 {[%clk 0:03:01.2]} 11. a3 {[%clk 0:02:36.3]} 11...
a6 {[%clk 0:02:59.1]} 12. b4 {[%clk 0:02:36.2]} 12... b6 {[%clk 0:02:53.4]} 13.
Rb1 {[%clk 0:02:36.2]} 13... a5 {[%clk 0:02:47.2]} 14. Na4 {[%clk 0:02:29.6]}
14... axb4 {[%clk 0:02:41.5]} 15. axb4 {[%clk 0:02:27.7]} 15... Na6 {[%clk
0:02:31.8]} 16. bxc5 {[%clk 0:02:27.8]} 16... bxc5 {[%clk 0:02:30.1]} 17. Nb6
{[%clk 0:02:22.6]} 17... Rb8 {[%clk 0:02:26.5]} 18. Nxc8 {[%clk 0:02:22.4]}
18... Qxc8 {[%clk 0:02:16.3]} 19. Rxb8 {[%clk 0:02:19.3]} 19... Qxb8 {[%clk
0:02:17.2]} 20. g5 {[%clk 0:02:15.9]} 20... Nec7 {[%clk 0:02:09.8]} 21. Nf3
{[%clk 0:02:08.8]} 21... Qb2 {[%clk 0:02:01]} 22. Kf1 {[%clk 0:02:01.9]} 22...
Rb8 {[%clk 0:01:59.5]} 23. Kg2 {[%clk 0:01:45.1]} 23... Qa2 {[%clk 0:01:55]} 24.
Nh2 {[%clk 0:01:04.2]} 24... Rb2 {[%clk 0:01:51.3]} 25. Bf1 {[%clk 0:01:03.7]}
25... Nb4 {[%clk 0:00:55.7]} 26. Ng4 {[%clk 0:01:03.1]} 26... Nc2 {[%clk
0:00:55.3]} 27. Bc1 {[%clk 0:00:58.5]} 27... Rb1 {[%clk 0:00:50.6]} 28. Bd3
{[%clk 0:00:58.4]} 28... Nd4 {[%clk 0:00:32.2]} 29. Bxb1 {[%clk 0:00:54.8]}
29... Qxb1 {[%clk 0:00:33.1]} 30. h6 {[%clk 0:00:38.2]} 30... Bh8 {[%clk
0:00:24.5]} 31. Re1 {[%clk 0:00:37.6]} 31... Na6 {[%clk 0:00:18.6]} 32. Qa4
{[%clk 0:00:24.1]} 32... Nc7 {[%clk 0:00:13.6]} 33. Qa7 {[%clk 0:00:19.3]} 33...
Ne8 {[%clk 0:00:11.8]} 34. Qe7 {[%clk 0:00:16.7]} 34... Qb8 {[%clk 0:00:09.8]}
35. Be3 {[%clk 0:00:16.8]} 35... Nc2 {[%clk 0:00:09.8]} 36. Rb1 {[%clk 0:00:16]}
36... Qc8 {[%clk 0:00:08.5]} 37. Kg3 {[%clk 0:00:13]} 37... Nb4 {[%clk
0:00:07.6]} 38. Ra1 {[%clk 0:00:13]} 38... Na6 {[%clk 0:00:03.8]} 39. Rxa6
{[%clk 0:00:12.8]} 1-0